fUST/lending_fUST_20240112
["ID","MTS","AMOUNT","RATE_DAILY","PERIOD"]
[311370807,1705069856551,-500.0,0.0002702,2]
[311370809,1705069856560,-1032.57,0.0002702,2]
[311370811,1705069856569,-516.28,0.0002702,2]
[311370813,1705069856580,-537.62,0.0002702,2]
[311370815,1705069856589,-596.79,0.0002702,2]
[311370817,1705069856598,-794.15,0.00027123,2]
[311370819,1705069856606,-500.0,0.00027123,2]
[311370821,1705069856617,-1433.9,0.00027123,2]
[311370823,1705069856626,-1199.61,0.00027123,2]
[311370825,1705069856635,-637.19,0.00027123,2]
[311370827,1705069856644,-715.99,0.00027123,2]
[311370829,1705069856655,-2643.73,0.00027123,2]
[311370831,1705069856665,-1611.76272412,0.00027123,2]
[311370833,1705069856685,-982.37154437,0.00027123,2]
[311370835,1705069856696,-12299.05573151,0.00027123,2]
[311370837,1705069856705,-585.89842054,0.00027123,2]
[311370850,1705069856908,5000.0,0.000252,7]
[311370875,1705069857177,2034.95814622,0.00013194,2]
[311370879,1705069857205,2497.57056815,0.00013194,2]
[311371044,1705069858852,267.84682973,0.00025199,7]
[311371379,1705069865238,1517.51938433,0.000252,7]
[311376916,1705069924196,155.01085076,0.00021689,4]
[311380010,1705069982503,200.0,0.00021463,7]
[311380011,1705069983470,348.0,0.00021463,7]
[311380012,1705069984244,200.0,0.00023609,7]
[311380013,1705069985485,200.0,0.00023609,7]
[311380014,1705069986266,368.0,0.00023609,7]
[311380017,1705070050093,3508.47659249,0.000251,10]
[311380023,1705070102543,1730.09893129,0.000251,10]
[311380031,1705070282292,358.0,0.00021463,7]
[311380135,1705070898398,9421.0,0.000135,2]
[311380239,1705071032207,-516.68630748,0.00014634,2]
[311380241,1705071032217,-155.00310006,0.00014635,2]
[311380243,1705071032228,-838.446531,0.00014637,2]
[311380547,1705071038161,-2640.87044269,0.00014637,2]
[311380549,1705071038172,-1800.0,0.00014638,2]
[311380551,1705071038182,-2501.90642142,0.0001466,2]
[311380553,1705071038191,-555.97082047,0.0001466,2]
[311380555,1705071038200,-2704.1018383,0.0001466,2]
[311380558,1705071038225,-1590.39736242,0.0001466,2]
[311380560,1705071038235,-223.7168884,0.00014873,2]
[311380562,1705071038244,-171.16873058,0.00016702,2]
[311380564,1705071038254,-7128.91701859,0.0001675,2]
[311381300,1705071045346,-466.69842907,0.00016748,2]
[311381302,1705071045356,-309.84507746,0.00016748,2]
[311381305,1705071045365,-400.02724112,0.00016749,2]
[311381308,1705071045375,-230.55764509,0.00016749,2]
[311381310,1705071045384,-264.9672714,0.00016749,2]
[311381312,1705071045394,-347.2162539,0.00016749,2]
[311381314,1705071045407,-2839.06248946,0.00016749,2]
[311381317,1705071045426,-2109.33469921,0.00016749,2]
[311381319,1705071045437,-2454.14392457,0.00016749,2]
[311381321,1705071045449,-1582.68177532,0.00016749,2]
[311381323,1705071045461,-8.73330683,0.00016749,2]
[311381325,1705071045472,-401.54312507,0.0001675,2]
[311381335,1705071045563,-318.79380524,0.0001675,2]
[311381455,1705071046890,-671.84284078,0.00016748,2]
[311381457,1705071046900,-162.51375347,0.00016749,2]
[311381459,1705071046911,-9648.00994696,0.0001675,2]
[311381465,1705071046953,-1364.47,0.0001675,2]
[311382172,1705071054683,229.17206579,0.000135,5]
[311382328,1705071057450,498.62800192,0.000239,5]
[311382577,1705071065225,8746.44340822,0.00013095,2]
[311382581,1705071087211,2132.04624921,0.00013095,2]
[311382600,1705071182678,391.0,0.00022285,7]
[311382608,1705071306168,500.0,0.00029,30]
[311382612,1705071385474,860.01701118,0.00016729,5]
[311382613,1705071385502,451.09810824,0.00016729,5]
[311382614,1705071435812,-1191.80630754,0.00016436,2]
[311382615,1705071435834,-155.00310006,0.00016723,2]
[311382616,1705071435855,-230.55764509,0.00016724,2]
[311382617,1705071435876,-155.00310006,0.00016724,2]
[311382618,1705071435898,-155.00310006,0.00016724,2]
[311382619,1705071435921,-155.00310006,0.00016724,3]
[311382620,1705071435942,-191.07662918,0.00016725,2]
[311382621,1705071435963,-155.00310006,0.00016725,2]
[311382622,1705071435993,-272.04729889,0.00016725,2]
[311382623,1705071436015,-451.87490081,0.00016725,2]
[311382624,1705071436038,-516.68630748,0.00016726,2]
[311382625,1705071436059,-155.00310006,0.00016726,2]
[311382626,1705071436082,-6602.39171922,0.00016726,2]
[311382627,1705071436104,-7946.17143927,0.00016726,2]
[311382628,1705071436126,-7989.60013918,0.00016726,2]
[311382629,1705071436147,-2871.95900916,0.00016727,2]
[311382630,1705071436169,-1200.0,0.00016728,2]
[311382631,1705071436190,-322.94976484,0.00016728,2]
[311382632,1705071436224,-3479.31697369,0.00016729,2]
[311382633,1705071436245,-279.16710384,0.00016729,2]
[311382634,1705071436268,-155.00310006,0.00016729,2]
[311382635,1705071436290,-877.77688126,0.00016729,2]
[311382636,1705071436311,-301.18213313,0.00016729,2]
[311382637,1705071436332,-860.48516411,0.00016729,2]
[311382638,1705071436354,-2807.77525151,0.00016729,2]
[311382639,1705071436380,-227.83997944,0.00016729,2]
[311382640,1705071436401,-170.5489181,0.00016729,2]
[311382641,1705071436424,-309.92980912,0.00016729,2]
[311382642,1705071436451,-200.00000007,0.00016729,2]
[311382643,1705071436475,-11882.5146296,0.0001673,2]
[311382644,1705071436496,-6814.02617516,0.00016731,2]
[311382645,1705071436518,-6114.40197285,0.00016731,2]
[311382646,1705071436538,-872.87113394,0.00017235,2]
[311382647,1705071436559,-5265.600811,0.000174,2]
[311382648,1705071436579,-173.6869708,0.00017689,2]
[311382649,1705071436601,-310.88585753,0.0001833,2]
[311382650,1705071436737,-328.87291893,0.0001833,2]
[311382651,1705071436760,-686.6489252,0.0001833,2]
[311382652,1705071436783,-164.08761243,0.0001833,2]
[311382653,1705071436805,-522.57590805,0.0001833,2]
[311382654,1705071436830,-1576.24044161,0.0001833,2]
[311382655,1705071436852,-214.59576763,0.0001833,2]
[311382656,1705071436875,-34570.10335188,0.0001833,2]
[311382657,1705071436897,-297.11368509,0.0001833,2]
[311382658,1705071436924,-2726.99510204,0.0001833,2]
[311382659,1705071436946,-155.20238208,0.0001833,2]
[311382660,1705071436970,-260.75400073,0.0001833,2]
[311382661,1705071436993,-1735.58180168,0.0001833,2]
[311382662,1705071437014,-164.13059612,0.0001833,2]
[311382663,1705071437035,-156.20759517,0.0001833,2]
[311382664,1705071437057,-4620.73728513,0.0001833,2]
[311382668,1705071480762,280.0,0.00022176,7]
[311382718,1705072082107,391.0,0.00021107,7]
[311382862,1705072240684,-322.94976484,0.00015081,2]
[311382863,1705072240694,-155.00310006,0.00015082,2]
[311382864,1705072240704,-2871.95900916,0.00015082,2]
[311382865,1705072240713,-1000.0,0.00015083,2]
[311382866,1705072240722,-287.0479486,0.00015084,2]
[311382867,1705072240731,-7946.17143927,0.00015084,2]
[311382868,1705072240741,-7989.60013918,0.00015085,2]
[311382869,1705072240750,-1341.370018,0.00015091,2]
[311382870,1705072240759,-196.14268737,0.00015106,2]
[311382871,1705072240768,-24900.0,0.00015107,2]
[311382872,1705072240778,-165.19538765,0.00015872,2]
[311382873,1705072240787,-165.19538762,0.00016462,2]
[311382874,1705072240797,-165.19538762,0.00017051,2]
[311382875,1705072240806,-872.87113394,0.00017235,2]
[311382876,1705072240816,-200.0,0.00017444,2]
[311382877,1705072240825,-165.19538762,0.00017641,2]
[311382878,1705072240835,-3547.01759837,0.00017962,2]
[311382879,1705072240844,-165.19538762,0.0001823,2]
[311382880,1705072240854,-309.53653679,0.00018328,2]
[311382881,1705072240863,-191.04671629,0.00018328,2]
[311382882,1705072240875,-238.69141255,0.00018328,2]
[311382883,1705072240884,-309.62999594,0.00018328,2]
[311382885,1705072240893,-271.92490865,0.00018328,2]
[311382887,1705072240903,-5721.64939848,0.00018328,2]
[311382889,1705072240916,-155.51953678,0.00018328,2]
[311382890,1705072240925,-268.33922409,0.00018328,2]
[311382892,1705072240935,-1524.33731205,0.00018328,2]
[311382894,1705072240944,-964.33699681,0.00018329,2]
[311382896,1705072240954,-1963.08203173,0.0001833,2]
[311382898,1705072240964,-1033.56310371,0.0001833,2]
[311382900,1705072240973,-162.71686372,0.0001833,2]
[311382902,1705072240982,-264.80820677,0.0001833,2]
[311382904,1705072240992,-156.63290004,0.0001833,2]
[311382905,1705072241002,-166.81952113,0.0001833,2]
[311382907,1705072241012,-633.49224014,0.0001833,2]
[311382909,1705072241020,-155.82283665,0.0001833,2]
[311382911,1705072241029,-329.91794083,0.0001833,2]
[311382913,1705072241038,-183.01231192,0.0001833,2]
[311382915,1705072241047,-158.25059054,0.0001833,2]
[311382917,1705072241056,-15870.61357496,0.0001833,2]
[311382918,1705072241065,-710.11570072,0.0001833,2]
[311382920,1705072241074,-213.62341382,0.0001833,2]
[311382922,1705072241083,-222.06298067,0.0001833,2]
[311382924,1705072241092,-20823.66437737,0.0001833,2]
[311382926,1705072241101,-365.58104932,0.0001833,2]
[311382928,1705072241110,-192.72964022,0.0001833,2]
[311382930,1705072241119,-161.54169169,0.0001833,2]
[311382931,1705072241130,-312.91539313,0.0001833,2]
[311382933,1705072241139,-586.93974545,0.0001833,2]
[311382934,1705072241148,-1951.52064673,0.0001833,2]
[311382935,1705072241159,-593.96547105,0.00018331,2]
[311382936,1705072241168,-284.64131656,0.00018331,2]
[311382937,1705072241177,-2211.2704045,0.00018331,2]
[311382938,1705072241187,-974.4321325,0.000189,2]
[311382939,1705072241196,-1577.96610455,0.00019,2]
[311382940,1705072241205,-280.0,0.00019188,2]
[311382941,1705072241214,-1195.46446057,0.0002,2]
[311382943,1705072241223,-266.50001777,0.0002,2]
[311382944,1705072241232,-155.00310006,0.0002,2]
[311382945,1705072241241,-848.51221584,0.0002,2]
[311382946,1705072241251,-569.37401545,0.0002,2]
[311382947,1705072241260,-200.0,0.0002,2]
[311382948,1705072241269,-155.09615962,0.0002,2]
[311382949,1705072241278,-155.10924066,0.0002,2]
[311382950,1705072241288,-665.55235548,0.0002,2]
[311382951,1705072241297,-155.00310006,0.0002,2]
[311382952,1705072241306,-677.0708176,0.0002,2]
[311382953,1705072241316,-223.89868289,0.0002,2]
[311382954,1705072241325,-6528.127613,0.0002,2]
[311382955,1705072241334,-6528.127613,0.0002,2]
[311382956,1705072241344,-6528.127613,0.0002,2]
[311382957,1705072241353,-6528.127613,0.0002,2]
[311382958,1705072241363,-6528.127613,0.0002,2]
[311382959,1705072241372,-326.84593778,0.00021,2]
[311382960,1705072241382,-8996.54781078,0.00021,2]
[311382961,1705072241392,-8296.29169957,0.00021,2]
[311382962,1705072241402,-300.0,0.00021107,2]
[311382963,1705072241411,-2080.28320628,0.00021107,2]
[311382964,1705072241420,-1822.38176649,0.00021107,2]
[311382965,1705072241430,-200.0,0.00021107,2]
[311382966,1705072241439,-546.95952545,0.00021107,2]
[311382967,1705072241448,-903.31995374,0.00021717,2]
[311382969,1705072241457,-276000.0,0.00021817,2]
[311382971,1705072241466,-155.03263391,0.00021915,2]
[311382973,1705072241474,-572.08255613,0.00021915,2]
[311382974,1705072241483,-775.59122536,0.00021915,2]
[311382976,1705072241492,-155.52766918,0.00021915,2]
[311382978,1705072241501,-500.0,0.00021917,2]
[311382980,1705072241511,-500.0,0.00021917,2]
[311382982,1705072241519,-500.0,0.00021917,2]
[311382984,1705072241529,-500.0,0.00021917,2]
[311382986,1705072241538,-347.48740305,0.00021917,2]
[311382988,1705072241548,-500.0,0.00021917,2]
[311382990,1705072241557,-500.0,0.00021917,2]
[311382991,1705072241566,-500.0,0.00021917,2]
[311382993,1705072241576,-500.0,0.00021917,2]
[311382995,1705072241585,-500.0,0.00021917,2]
[311382997,1705072241594,-500.0,0.00021917,2]
[311382999,1705072241603,-500.0,0.00021917,2]
[311383001,1705072241612,-500.0,0.00021917,2]
[311383003,1705072241621,-500.0,0.00021917,2]
[311383005,1705072241633,-500.68671623,0.00021917,2]
[311383007,1705072241644,-500.0340517,0.00021917,2]
[311383009,1705072241652,-500.0,0.00021917,2]
[311383011,1705072241661,-500.0,0.00021917,2]
[311383013,1705072241670,-500.0,0.00021917,2]
[311383015,1705072241679,-500.0,0.00021917,2]
[311383017,1705072241687,-500.0,0.00021917,2]
[311383019,1705072241696,-500.0,0.00021917,2]
[311383021,1705072241705,-528.93304443,0.00021917,2]
[311383023,1705072241714,-500.0,0.00021917,2]
[311383025,1705072241723,-179.29970668,0.00021917,2]
[311383027,1705072241732,-514.16186221,0.00021917,2]
[311383029,1705072241741,-500.0,0.00021917,2]
[311383031,1705072241750,-500.0,0.00021917,2]
[311383032,1705072241759,-506.40633693,0.00021917,2]
[311383034,1705072241768,-507.44134489,0.00021917,2]
[311383037,1705072241777,-500.0,0.00021917,2]
[311383038,1705072241786,-500.0,0.00021917,2]
[311383040,1705072241795,-605.14027275,0.00021917,2]
[311383042,1705072241804,-500.0,0.00021917,2]
[311383044,1705072241813,-504.32486855,0.00021917,2]
[311383046,1705072241823,-500.18775545,0.00021917,2]
[311383048,1705072241832,-501.07900066,0.00021917,2]
[311383050,1705072241841,-500.0,0.00021917,2]
[311383052,1705072241850,-583.76094556,0.00021917,2]
[311383054,1705072241859,-519.86152145,0.00021917,2]
[311383056,1705072241868,-500.0,0.00021917,2]
[311383058,1705072241878,-503.30208693,0.00021917,2]
[311383060,1705072241887,-500.0,0.00021917,2]
[311383062,1705072241897,-500.0,0.00021917,2]
[311383064,1705072241906,-500.0,0.00021917,2]
[311383066,1705072241915,-154.8915759,0.00021917,2]
[311383068,1705072241924,-619.59194232,0.00021917,2]
[311383070,1705072241933,-500.0,0.00021917,2]
[311383072,1705072241942,-500.0,0.00021917,2]
[311383074,1705072241951,-622.52291457,0.00021917,2]
[311383076,1705072241961,-500.0,0.00021917,2]
[311383078,1705072241970,-500.0,0.00021917,2]
[311383080,1705072241978,-500.0,0.00021917,2]
[311383082,1705072241987,-500.0,0.00021917,2]
[311383084,1705072241996,-500.0,0.00021917,2]
[311383086,1705072242005,-500.0,0.00021917,2]
[311383088,1705072242014,-500.0,0.00021917,2]
[311383090,1705072242023,-641.07234229,0.00021917,2]
[311383092,1705072242032,-502.17596394,0.00021917,2]
[311383094,1705072242041,-500.0,0.00021917,2]
[311383096,1705072242050,-516.84449583,0.00021917,2]
[311383098,1705072242059,-500.0,0.00021917,2]
[311383100,1705072242068,-500.0,0.00021917,2]
[311383102,1705072242077,-500.0,0.00021917,2]
[311383104,1705072242086,-500.0,0.00021917,2]
[311383106,1705072242095,-500.0,0.00021917,2]
[311383108,1705072242106,-500.0,0.00021917,2]
[311383110,1705072242115,-500.0,0.00021917,2]
[311383112,1705072242123,-500.0,0.00021917,2]
[311383114,1705072242133,-500.0,0.00021917,2]
[311383116,1705072242142,-284.04382982,0.00021917,2]
[311383118,1705072242151,-500.0,0.00021917,2]
[311383130,1705072242161,-500.0,0.00021917,2]
[311383132,1705072242269,-500.0,0.00021917,2]
[311383135,1705072242279,-500.0,0.00021917,2]
[311383137,1705072242288,-500.0,0.00021917,2]
[311383139,1705072242298,-500.0,0.00021917,2]
[311383140,1705072242307,-500.0,0.00021917,2]
[311383142,1705072242316,-500.0,0.00021917,2]
[311383144,1705072242326,-500.0,0.00021917,2]
[311383146,1705072242335,-500.0,0.00021917,2]
[311383148,1705072242344,-200.23172933,0.00021917,2]
[311383150,1705072242353,-500.0,0.00021917,2]
[311383152,1705072242362,-349.09984541,0.00021917,2]
[311383154,1705072242371,-500.0,0.00021917,2]
[311383156,1705072242383,-500.0,0.00021917,2]
[311383158,1705072242392,-500.0,0.00021917,2]
[311383160,1705072242403,-500.0,0.00021917,2]
[311383162,1705072242412,-579.01830516,0.00021917,2]
[311383164,1705072242421,-500.0,0.00021917,2]
[311383166,1705072242430,-500.0,0.00021917,2]
[311383168,1705072242439,-500.0,0.00021917,2]
[311383171,1705072242449,-500.0,0.00021917,2]
[311383174,1705072242458,-500.0,0.00021917,2]
[311383176,1705072242467,-500.0,0.00021917,2]
[311383179,1705072242476,-500.0,0.00021917,2]
[311383181,1705072242485,-500.0,0.00021917,2]
[311383183,1705072242495,-540.88474699,0.00021917,2]
[311383185,1705072242504,-500.0,0.00021917,2]
[311383187,1705072242513,-500.0,0.00021917,2]
[311383189,1705072242522,-500.0,0.00021917,2]
[311383191,1705072242532,-500.0,0.00021917,2]
[311383194,1705072242541,-500.0,0.00021917,2]
[311383196,1705072242551,-500.0,0.00021917,2]
[311383199,1705072242562,-500.0,0.00021917,2]
[311383201,1705072242570,-566.51,0.00021917,2]
[311383205,1705072242581,-500.0,0.00021917,2]
[311383207,1705072242594,-500.0,0.00021917,2]
[311383210,1705072242603,-500.2761618,0.00021917,2]
[311383213,1705072242613,-500.0,0.00021917,2]
[311383216,1705072242622,-200.17361707,0.00021917,2]
[311383219,1705072242633,-500.0,0.00021917,2]
[311383222,1705072242643,-500.0,0.00021917,2]
[311383224,1705072242652,-500.0,0.00021917,2]
[311383226,1705072242662,-500.0,0.00021917,2]
[311383228,1705072242671,-500.0,0.00021917,2]
[311383230,1705072242681,-221.60693702,0.00021917,2]
[311383232,1705072242690,-500.0,0.00021917,2]
[311383234,1705072242699,-500.0,0.00021917,2]
[311383236,1705072242708,-500.0,0.00021917,2]
[311383238,1705072242718,-500.0,0.00021917,2]
[311383240,1705072242728,-500.0,0.00021917,2]
[311383242,1705072242738,-500.0,0.00021917,2]
[311383244,1705072242747,-500.0,0.00021917,2]
[311383246,1705072242756,-500.0,0.00021917,2]
[311383248,1705072242766,-500.0,0.00021917,2]
[311383250,1705072242776,-500.0,0.00021917,2]
[311383252,1705072242785,-501.68664968,0.00021917,2]
[311383255,1705072242796,-500.0,0.00021917,2]
[311383256,1705072242805,-200.0,0.00021917,2]
[311383258,1705072242814,-502.61811935,0.00021917,2]
[311383260,1705072242823,-500.0,0.00021917,2]
[311383262,1705072242833,-500.0,0.00021917,2]
[311383265,1705072242842,-500.0,0.00021917,2]
[311383267,1705072242851,-500.0,0.00021917,2]
[311383269,1705072242861,-500.0,0.00021917,2]
[311383270,1705072242871,-500.0,0.00021917,2]
[311383273,1705072242883,-500.0,0.00021917,2]
[311383274,1705072242893,-313.77737342,0.00021917,2]
[311383276,1705072242902,-500.0,0.00021917,2]
[311383278,1705072242915,-168.28933158,0.00021917,2]
[311383280,1705072242925,-500.0,0.00021917,2]
[311383282,1705072242937,-500.0,0.00021917,2]
[311383284,1705072242946,-500.0,0.00021917,2]
[311383286,1705072242955,-500.0,0.00021917,2]
[311383288,1705072242965,-500.0,0.00021917,2]
[311383290,1705072242974,-500.0,0.00021917,2]
[311383292,1705072242983,-500.0,0.00021917,2]
[311383294,1705072242994,-500.0,0.00021917,2]
[311383296,1705072243003,-170.65278186,0.00021917,2]
[311383298,1705072243013,-500.0,0.00021917,2]
[311383300,1705072243022,-539.80198278,0.00021917,2]
[311383302,1705072243030,-500.0,0.00021917,2]
[311383304,1705072243040,-500.0,0.00021917,2]
[311383306,1705072243049,-500.0,0.00021917,2]
[311383308,1705072243058,-500.0,0.00021917,2]
[311383310,1705072243067,-500.0,0.00021917,2]
[311383312,1705072243076,-500.0,0.00021917,2]
[311383314,1705072243086,-506.77755744,0.00021917,2]
[311383316,1705072243095,-500.0,0.00021917,2]
[311383318,1705072243104,-500.0,0.00021917,2]
[311383320,1705072243114,-500.0,0.00021917,2]
[311383322,1705072243123,-626.60587398,0.00021917,2]
[311383323,1705072243135,-500.0,0.00021917,2]
[311383324,1705072243144,-500.0,0.00021917,2]
[311383325,1705072243153,-500.0,0.00021917,2]
[311383326,1705072243162,-500.0,0.00021917,2]
[311383327,1705072243171,-500.0,0.00021917,2]
[311383328,1705072243181,-550.94839006,0.00021917,2]
[311383329,1705072243190,-500.0,0.00021917,2]
[311383330,1705072243199,-500.0,0.00021917,2]
[311383331,1705072243208,-500.0,0.00021917,2]
[311383332,1705072243217,-500.0,0.00021917,2]
[311383333,1705072243227,-500.0,0.00021917,2]
[311383334,1705072243236,-500.0,0.00021917,2]
[311383336,1705072243245,-500.0,0.00021917,2]
[311383338,1705072243254,-500.0,0.00021917,2]
[311383339,1705072243262,-500.0,0.00021917,2]
[311383340,1705072243271,-500.0,0.00021917,2]
[311383341,1705072243280,-500.0,0.00021917,2]
[311383342,1705072243289,-500.0,0.00021917,2]
[311383343,1705072243299,-500.0,0.00021917,2]
[311383344,1705072243308,-500.0,0.00021917,2]
[311383345,1705072243317,-600.0,0.00021917,2]
[311383347,1705072243327,-500.0,0.00021917,2]
[311383349,1705072243335,-500.0,0.00021917,2]
[311383351,1705072243344,-500.0,0.00021917,2]
[311383353,1705072243353,-500.0,0.00021917,2]
[311383355,1705072243363,-500.0,0.00021917,2]
[311383357,1705072243372,-500.0,0.00021917,2]
[311383359,1705072243383,-500.0,0.00021917,2]
[311383361,1705072243393,-500.0,0.00021917,2]
[311383363,1705072243402,-185.80771542,0.00021917,2]
[311383365,1705072243411,-500.0,0.00021917,2]
[311383367,1705072243420,-500.0,0.00021917,2]
[311383369,1705072243429,-500.0,0.00021917,2]
[311383371,1705072243438,-500.0,0.00021917,2]
[311383373,1705072243448,-500.0,0.00021917,2]
[311383375,1705072243458,-500.0,0.00021917,2]
[311383377,1705072243467,-500.0,0.00021917,2]
[311383379,1705072243476,-500.0,0.00021917,2]
[311383381,1705072243485,-500.0,0.00021917,2]
[311383383,1705072243494,-500.0,0.00021917,2]
[311383385,1705072243503,-500.0,0.00021917,2]
[311383387,1705072243512,-500.0,0.00021917,2]
[311383389,1705072243521,-502.72683891,0.00021917,2]
[311383391,1705072243530,-500.0,0.00021917,2]
[311383393,1705072243539,-500.0,0.00021917,2]
[311383395,1705072243548,-500.0,0.00021917,2]
[311383397,1705072243557,-500.0,0.00021917,2]
[311383399,1705072243566,-500.0,0.00021917,2]
[311383401,1705072243575,-500.0,0.00021917,2]
[311383403,1705072243584,-500.0,0.00021917,2]
[311383405,1705072243594,-504.46590578,0.00021917,2]
[311383407,1705072243603,-503.59279333,0.00021917,2]
[311383409,1705072243612,-500.0,0.00021917,2]
[311383411,1705072243625,-500.0,0.00021917,2]
[311383413,1705072243636,-500.0,0.00021917,2]
[311383416,1705072243645,-500.0,0.00021917,2]
[311383417,1705072243654,-500.0,0.00021917,2]
[311383419,1705072243663,-500.0,0.00021917,2]
[311383421,1705072243672,-500.0,0.00021917,2]
[311383423,1705072243681,-500.0,0.00021917,2]
[311383425,1705072243690,-500.0,0.00021917,2]
[311383427,1705072243699,-500.0,0.00021917,2]
[311383429,1705072243707,-500.0,0.00021917,2]
[311383431,1705072243716,-500.0,0.00021917,2]
[311383433,1705072243725,-500.0,0.00021917,2]
[311383435,1705072243734,-500.0,0.00021917,2]
[311383437,1705072243743,-500.0,0.00021917,2]
[311383440,1705072243755,-500.0,0.00021917,2]
[311383442,1705072243764,-500.0,0.00021917,2]
[311383443,1705072243773,-500.0,0.00021917,2]
[311383445,1705072243782,-500.0,0.00021917,2]
[311383447,1705072243790,-500.0,0.00021917,2]
[311383449,1705072243799,-500.0,0.00021917,2]
[311383451,1705072243808,-581.97563949,0.00021917,2]
[311383453,1705072243817,-500.0,0.00021917,2]
[311383455,1705072243826,-500.0,0.00021917,2]
[311383457,1705072243836,-500.74805085,0.00021917,2]
[311383459,1705072243845,-604.40248181,0.00021917,2]
[311383461,1705072243854,-504.1082049,0.00021917,2]
[311383463,1705072243863,-435.28211592,0.00021917,2]
[311383466,1705072243873,-500.0,0.00021917,2]
[311383467,1705072243882,-500.0,0.00021917,2]
[311383470,1705072243891,-500.0,0.00021917,2]
[311383471,1705072243901,-500.0,0.00021917,2]
[311383473,1705072243910,-500.0,0.00021917,2]
[311383475,1705072243919,-454.87529133,0.00021917,2]
[311383478,1705072243928,-501.1833665,0.00021917,2]
[311383479,1705072243937,-500.0,0.00021917,2]
[311383481,1705072243946,-500.0,0.00021917,2]
[311383483,1705072243955,-190.59659971,0.00021917,2]
[311383485,1705072243965,-500.57993592,0.00021917,2]
[311383487,1705072243974,-500.0,0.00021917,2]
[311383489,1705072243983,-647.68493227,0.00021917,2]
[311383491,1705072243992,-500.0,0.00021917,2]
[311383493,1705072244001,-500.0,0.00021917,2]
[311383495,1705072244010,-500.0,0.00021917,2]
[311383497,1705072244019,-500.0,0.00021917,2]
[311383499,1705072244027,-504.33334838,0.00021917,2]
[311383501,1705072244036,-500.0,0.00021917,2]
[311383503,1705072244046,-504.13213643,0.00021917,2]
[311383505,1705072244055,-500.0,0.00021917,2]
[311383507,1705072244065,-549.9269643,0.00021917,2]
[311383509,1705072244073,-500.0,0.00021917,2]
[311383511,1705072244082,-500.0,0.00021917,2]
[311383513,1705072244091,-500.0,0.00021917,2]
[311383515,1705072244100,-500.3679261,0.00021917,2]
[311383517,1705072244109,-501.84707636,0.00021917,2]
[311383519,1705072244120,-500.0,0.00021917,2]
[311383521,1705072244130,-500.0,0.00021917,2]
[311383523,1705072244140,-500.75415825,0.00021917,2]
[311383525,1705072244149,-500.0,0.00021917,2]
[311383527,1705072244158,-500.0,0.00021917,2]
[311383529,1705072244167,-502.05075626,0.00021917,2]
[311383531,1705072244176,-500.4226625,0.00021917,2]
[311383533,1705072244184,-174.34542901,0.00021917,2]
[311383535,1705072244194,-555.02,0.00021917,2]
[311383537,1705072244204,-500.0,0.00021917,2]
[311383539,1705072244213,-500.0,0.00021917,2]
[311383541,1705072244222,-500.0,0.00021917,2]
[311383543,1705072244231,-500.0,0.00021917,2]
[311383545,1705072244240,-500.0,0.00021917,2]
[311383547,1705072244249,-500.0,0.00021917,2]
[311383549,1705072244259,-500.0,0.00021917,2]
[311383552,1705072244268,-500.0,0.00021917,2]
[311383553,1705072244277,-500.0,0.00021917,2]
[311383556,1705072244287,-517.45744258,0.00021917,2]
[311383557,1705072244296,-500.0,0.00021917,2]
[311383560,1705072244307,-500.0,0.00021917,2]
[311383562,1705072244317,-531.1141987,0.00021917,2]